[Event "December 19 Early 2023"]
[Site "https://www.chess.com"]
[Date "2023.12.19"]
[Round "6"]
[White "So, Wesley"]
[Black "Kezin, Roman"]
[Result "1-0"]
[Board "14"]
[TimeControl "180+1"]
[WhiteFideId "5202213"]
[BlackFideId "24124621"]
[WhiteElo "2767"]
[BlackElo "2492"]
[WhiteTeam "USA"]
[BlackTeam "RUS"]
[WhiteClock "0:00:07"]
[BlackClock "0:00:00"]

1. b3 {[%clk 0:02:46]}  d5 {[%clk 0:02:53]} 2. Bb2 {[%clk 0:02:47]}  Bg4 {[%clk 0:02:52]} 3. h3 {[%clk 0:02:46]}  Bh5 {[%clk 0:02:52]} 4. Nf3 {[%clk 0:02:47]}  Bxf3 {[%clk 0:02:50]} 5. exf3 {[%clk 0:02:48]}  e6 {[%clk 0:02:49]} 6. f4 {[%clk 0:02:47]}  Nf6 {[%clk 0:02:47]} 7. Qe2 {[%clk 0:02:46]}  g6 {[%clk 0:02:43]} 8. Qb5+ {[%clk 0:02:45]}  Nbd7 {[%clk 0:02:34]} 9. Qxb7 {[%clk 0:02:38]}  Bg7 {[%clk 0:02:35]} 10. Qa6 {[%clk 0:02:23]}  O-O {[%clk 0:02:34]} 11. g3 {[%clk 0:02:21]}  e5 {[%clk 0:02:15]} 12. fxe5 {[%clk 0:02:20]}  Ne4 {[%clk 0:01:53]} 13. d4 {[%clk 0:02:11]}  c5 {[%clk 0:01:52]} 14. Bg2 {[%clk 0:02:04]}  cxd4 {[%clk 0:01:52]} 15. O-O {[%clk 0:02:05]}  Bxe5 {[%clk 0:01:35]} 16. Na3 {[%clk 0:01:58]}  Ndc5 {[%clk 0:01:30]} 17. Qe2 {[%clk 0:01:48]}  Re8 {[%clk 0:01:28]} 18. Qd1 {[%clk 0:01:45]}  Qa5 {[%clk 0:01:15]} 19. Nb1 {[%clk 0:01:29]}  Ne6 {[%clk 0:00:56]} 20. Re1 {[%clk 0:01:21]}  Rac8 {[%clk 0:00:12]} 21. Nd2 {[%clk 0:01:05]}  d3 {[%clk 0:00:05]} 22. Bxe5 {[%clk 0:00:57]}  dxc2 {[%clk 0:00:05]} 23. Nxe4 {[%clk 0:00:58]}  cxd1=Q {[%clk 0:00:05]} 24. Nf6+ {[%clk 0:00:58]}  Kf8 {[%clk 0:00:03]} 25. Raxd1 {[%clk 0:00:58]}  d4 {[%clk 0:00:02]} 26. Nxh7+ {[%clk 0:00:53]}  Kg8 {[%clk 0:00:02]} 27. Nf6+ {[%clk 0:00:53]}  Kf8 {[%clk 0:00:03]} 28. Nh7+ {[%clk 0:00:40]}  Kg8 {[%clk 0:00:03]} 29. Nf6+ {[%clk 0:00:40]}  Kf8 {[%clk 0:00:04]} 30. Bd6+ {[%clk 0:00:37]}  Kg7 {[%clk 0:00:04]} 31. Nxe8+ {[%clk 0:00:37]}  Rxe8 {[%clk 0:00:05]} 32. Be5+ {[%clk 0:00:35]}  Kf8 {[%clk 0:00:05]} 33. Bxd4 {[%clk 0:00:29]}  Nxd4 {[%clk 0:00:05]} 34. Rxe8+ {[%clk 0:00:30]}  Kxe8 {[%clk 0:00:06]} 35. Rxd4 {[%clk 0:00:30]}  Qe1+ {[%clk 0:00:05]} 36. Bf1 {[%clk 0:00:29]}  Kf8 {[%clk 0:00:06]} 37. Ra4 {[%clk 0:00:29]}  a5 {[%clk 0:00:05]} 38. h4 {[%clk 0:00:29]}  Kg7 {[%clk 0:00:03]} 39. Kg2 {[%clk 0:00:26]}  Qe5 {[%clk 0:00:02]} 40. Rf4 {[%clk 0:00:25]}  Qd5+ {[%clk 0:00:01]} 41. Kh2 {[%clk 0:00:25]}  f6 {[%clk 0:00:02]} 42. Bc4 {[%clk 0:00:23]}  Qd2 {[%clk 0:00:02]} 43. a4 {[%clk 0:00:23]}  Qb2 {[%clk 0:00:02]} 44. Kg2 {[%clk 0:00:23]}  Qc3 {[%clk 0:00:02]} 45. Rf3 {[%clk 0:00:23]}  Qb2 {[%clk 0:00:02]} 46. Re3 {[%clk 0:00:23]}  Qa3 {[%clk 0:00:03]} 47. Re6 {[%clk 0:00:23]}  Qb4 {[%clk 0:00:03]} 48. Re8 {[%clk 0:00:23]}  Qc3 {[%clk 0:00:02]} 49. Re7+ {[%clk 0:00:22]}  Kh6 {[%clk 0:00:02]} 50. Re3 {[%clk 0:00:21]}  Qd4 {[%clk 0:00:01]} 51. Rf3 {[%clk 0:00:20]}  Qd6 {[%clk 0:00:01]} 52. Rf4 {[%clk 0:00:20]}  Qc6+ {[%clk 0:00:02]} 53. Kh2 {[%clk 0:00:19]}  g5 {[%clk 0:00:03]} 54. hxg5+ {[%clk 0:00:19]}  fxg5 {[%clk 0:00:04]} 55. Rf7 {[%clk 0:00:19]}  Kg6 {[%clk 0:00:04]} 56. Kg1 {[%clk 0:00:19]}  Qc5 {[%clk 0:00:03]} 57. Rb7 {[%clk 0:00:18]}  Qd4 {[%clk 0:00:03]} 58. Rb5 {[%clk 0:00:19]}  Qc3 {[%clk 0:00:03]} 59. Kg2 {[%clk 0:00:18]}  Qd2 {[%clk 0:00:03]} 60. Bd5 {[%clk 0:00:18]}  Kf6 {[%clk 0:00:02]} 61. Be4 {[%clk 0:00:18]}  Qc3 {[%clk 0:00:02]} 62. Rf5+ {[%clk 0:00:17]}  Ke6 {[%clk 0:00:03]} 63. Rxg5 {[%clk 0:00:17]}  Kf6 {[%clk 0:00:02]} 64. Rf5+ {[%clk 0:00:17]}  Ke7 {[%clk 0:00:02]} 65. Rf3 {[%clk 0:00:17]}  Qd4 {[%clk 0:00:02]} 66. Bd3 {[%clk 0:00:17]}  Qe5 {[%clk 0:00:02]} 67. g4 {[%clk 0:00:16]}  Qd4 {[%clk 0:00:02]} 68. Kg3 {[%clk 0:00:16]}  Qe5+ {[%clk 0:00:01]} 69. Kh3 {[%clk 0:00:16]}  Qd4 {[%clk 0:00:01]} 70. g5 {[%clk 0:00:15]}  Qd5 {[%clk 0:00:01]} 71. Rg3 {[%clk 0:00:14]}  Kf8 {[%clk 0:00:00]} 72. g6 {[%clk 0:00:14]}  Kg7 {[%clk 0:00:00]} 73. Kh2 {[%clk 0:00:14]}  Qh5+ {[%clk 0:00:01]} 74. Kg1 {[%clk 0:00:13]}  Qe5 {[%clk 0:00:01]} 75. Bc4 {[%clk 0:00:12]}  Qa1+ {[%clk 0:00:02]} 76. Kg2 {[%clk 0:00:12]}  Qe5 {[%clk 0:00:03]} 77. Bf7 {[%clk 0:00:11]}  Qe4+ {[%clk 0:00:02]} 78. Kg1 {[%clk 0:00:10]}  Qe5 {[%clk 0:00:03]} 79. Bc4 {[%clk 0:00:10]}  Qa1+ {[%clk 0:00:03]} 80. Bf1 {[%clk 0:00:10]}  Qe5 {[%clk 0:00:03]} 81. Kg2 {[%clk 0:00:10]}  Qe4+ {[%clk 0:00:03]} 82. Kg1 {[%clk 0:00:10]}  Qe5 {[%clk 0:00:04]} 83. Rg2 {[%clk 0:00:10]}  Qa1 {[%clk 0:00:04]} 84. f3 {[%clk 0:00:09]}  Qb1 {[%clk 0:00:03]} 85. f4 {[%clk 0:00:08]}  Qxb3 {[%clk 0:00:02]} 86. f5 {[%clk 0:00:07]}  Qe3+ {[%clk 0:00:01]} 87. Rf2 {[%clk 0:00:07]}  Qg3+ {[%clk 0:00:00]} 88. Bg2 {[%clk 0:00:07]} 1-0

[Event "December 19 Early 2023"]
[Site "https://www.chess.com"]
[Date "2023.12.19"]
[Round "6"]
[White "Mamedyarov, Shakhriyar"]
[Black "Hong, Andrew"]
[Result "1-0"]
[Board "16"]
[TimeControl "180+1"]
[WhiteFideId "13401319"]
[BlackFideId "2099438"]
[WhiteElo "2716"]
[BlackElo "2460"]
[WhiteTeam "AZE"]
[BlackTeam "USA"]
[WhiteClock "0:00:22"]
[BlackClock "0:00:01"]

1. Nf3 {[%clk 0:03:00]}  d5 {[%clk 0:02:59]} 2. e3 {[%clk 0:03:00]}  Nf6 {[%clk 0:02:58]} 3. c4 {[%clk 0:03:01]}  e6 {[%clk 0:02:59]} 4. b3 {[%clk 0:03:00]}  c5 {[%clk 0:02:57]} 5. Bb2 {[%clk 0:03:00]}  Nc6 {[%clk 0:02:57]} 6. cxd5 {[%clk 0:03:00]}  exd5 {[%clk 0:02:58]} 7. Nc3 {[%clk 0:02:59]}  Be7 {[%clk 0:02:56]} 8. Rc1 {[%clk 0:02:59]}  O-O {[%clk 0:02:55]} 9. Na4 {[%clk 0:02:56]}  b6 {[%clk 0:02:45]} 10. d4 {[%clk 0:02:55]}  Ne4 {[%clk 0:02:45]} 11. Bb5 {[%clk 0:02:51]}  Bb7 {[%clk 0:02:42]} 12. dxc5 {[%clk 0:02:48]}  bxc5 {[%clk 0:02:39]} 13. O-O {[%clk 0:02:48]}  Rc8 {[%clk 0:02:35]} 14. Nd2 {[%clk 0:02:42]}  Nxd2 {[%clk 0:01:59]} 15. Qxd2 {[%clk 0:02:43]}  Nb8 {[%clk 0:01:53]} 16. Rfd1 {[%clk 0:02:38]}  a6 {[%clk 0:01:48]} 17. Be2 {[%clk 0:02:30]}  Nd7 {[%clk 0:01:46]} 18. Bg4 {[%clk 0:02:19]}  Rc7 {[%clk 0:01:34]} 19. Bf3 {[%clk 0:02:12]}  Nf6 {[%clk 0:01:25]} 20. Bxf6 {[%clk 0:02:01]}  Bxf6 {[%clk 0:01:26]} 21. Nxc5 {[%clk 0:01:58]}  Bc8 {[%clk 0:01:23]} 22. Bxd5 {[%clk 0:01:56]}  Bg4 {[%clk 0:01:13]} 23. Bf3 {[%clk 0:01:48]}  Qxd2 {[%clk 0:00:45]} 24. Rxd2 {[%clk 0:01:46]}  Bf5 {[%clk 0:00:42]} 25. g4 {[%clk 0:01:39]}  Bg6 {[%clk 0:00:39]} 26. b4 {[%clk 0:01:35]}  a5 {[%clk 0:00:36]} 27. a3 {[%clk 0:01:15]}  axb4 {[%clk 0:00:35]} 28. axb4 {[%clk 0:01:16]}  Rb8 {[%clk 0:00:34]} 29. Rcd1 {[%clk 0:01:14]}  Rcc8 {[%clk 0:00:23]} 30. Bb7 {[%clk 0:01:07]}  Rc7 {[%clk 0:00:13]} 31. Rd7 {[%clk 0:00:46]}  Rxd7 {[%clk 0:00:08]} 32. Rxd7 {[%clk 0:00:47]}  h5 {[%clk 0:00:08]} 33. h3 {[%clk 0:00:42]}  Bc3 {[%clk 0:00:03]} 34. b5 {[%clk 0:00:41]}  Ba5 {[%clk 0:00:03]} 35. Bc6 {[%clk 0:00:39]}  Rf8 {[%clk 0:00:02]} 36. Nb7 {[%clk 0:00:34]}  Bb6 {[%clk 0:00:02]} 37. Nd6 {[%clk 0:00:35]}  hxg4 {[%clk 0:00:02]} 38. hxg4 {[%clk 0:00:35]}  Kh7 {[%clk 0:00:02]} 39. Nc4 {[%clk 0:00:35]}  Bc5 {[%clk 0:00:02]} 40. b6 {[%clk 0:00:35]}  Rc8 {[%clk 0:00:02]} 41. b7 {[%clk 0:00:35]}  Rb8 {[%clk 0:00:02]} 42. Ne5 {[%clk 0:00:33]}  Ba7 {[%clk 0:00:02]} 43. Nxf7 {[%clk 0:00:32]}  Bc2 {[%clk 0:00:02]} 44. Nd6 {[%clk 0:00:30]}  Rf8 {[%clk 0:00:02]} 45. Be4+ {[%clk 0:00:30]}  Bxe4 {[%clk 0:00:01]} 46. Nxe4 {[%clk 0:00:31]}  Re8 {[%clk 0:00:01]} 47. Nf6+ {[%clk 0:00:30]}  Kg6 {[%clk 0:00:01]} 48. Nxe8 {[%clk 0:00:30]}  Kg5 {[%clk 0:00:01]} 49. Rxg7+ {[%clk 0:00:29]}  Kh4 {[%clk 0:00:02]} 50. Kg2 {[%clk 0:00:28]}  Bb8 {[%clk 0:00:02]} 51. Nf6 {[%clk 0:00:27]}  Bf4 {[%clk 0:00:02]} 52. Ne4 {[%clk 0:00:27]}  Bg5 {[%clk 0:00:02]} 53. f3 {[%clk 0:00:25]}  Bh6 {[%clk 0:00:02]} 54. b8=B {[%clk 0:00:23]}  Bf4 {[%clk 0:00:01]} 55. Rh7+ {[%clk 0:00:22]} 1-0

[Event "December 19 Early 2023"]
[Site "https://www.chess.com"]
[Date "2023.12.19"]
[Round "6"]
[White "Keymer, Vincent"]
[Black "Klimkowski, Jan"]
[Result "0-1"]
[Board "17"]
[TimeControl "180+1"]
[WhiteFideId "12940690"]
[BlackFideId "21856222"]
[WhiteElo "2629"]
[BlackElo "2324"]
[WhiteTeam "GER"]
[BlackTeam "POL"]
[WhiteClock "0:00:01"]
[BlackClock "0:00:21"]

1. a3 {[%clk 0:03:00]}  h6 {[%clk 0:02:58]} 2. c4 {[%clk 0:02:57]}  e5 {[%clk 0:02:58]} 3. d3 {[%clk 0:02:54]}  Nf6 {[%clk 0:02:58]} 4. Nf3 {[%clk 0:02:54]}  Nc6 {[%clk 0:02:58]} 5. b4 {[%clk 0:02:51]}  d6 {[%clk 0:02:58]} 6. Bb2 {[%clk 0:02:50]}  Be7 {[%clk 0:02:58]} 7. g3 {[%clk 0:02:50]}  O-O {[%clk 0:02:59]} 8. Bg2 {[%clk 0:02:51]}  Be6 {[%clk 0:02:58]} 9. O-O {[%clk 0:02:48]}  Qd7 {[%clk 0:02:59]} 10. Re1 {[%clk 0:02:48]}  Bh3 {[%clk 0:02:58]} 11. Bh1 {[%clk 0:02:48]}  a6 {[%clk 0:02:56]} 12. Nc3 {[%clk 0:02:49]}  Rfe8 {[%clk 0:02:57]} 13. Nd5 {[%clk 0:02:49]}  Bd8 {[%clk 0:02:50]} 14. Rc1 {[%clk 0:02:49]}  Nxd5 {[%clk 0:02:50]} 15. cxd5 {[%clk 0:02:49]}  Ne7 {[%clk 0:02:51]} 16. e4 {[%clk 0:02:40]}  c6 {[%clk 0:02:51]} 17. d4 {[%clk 0:02:37]}  cxd5 {[%clk 0:02:22]} 18. dxe5 {[%clk 0:02:38]}  dxe4 {[%clk 0:02:22]} 19. Rxe4 {[%clk 0:02:39]}  d5 {[%clk 0:02:22]} 20. Re1 {[%clk 0:02:37]}  Nc6 {[%clk 0:02:20]} 21. Qd2 {[%clk 0:02:22]}  Bb6 {[%clk 0:02:15]} 22. Bg2 {[%clk 0:02:21]}  Bxg2 {[%clk 0:02:11]} 23. Kxg2 {[%clk 0:02:22]}  d4 {[%clk 0:02:07]} 24. Qd3 {[%clk 0:02:07]}  Qd5 {[%clk 0:02:03]} 25. Qe4 {[%clk 0:02:00]}  Rad8 {[%clk 0:02:03]} 26. Rcd1 {[%clk 0:01:34]}  Qxe4 {[%clk 0:01:43]} 27. Rxe4 {[%clk 0:01:33]}  Rd5 {[%clk 0:01:38]} 28. Rd2 {[%clk 0:01:07]}  f5 {[%clk 0:01:15]} 29. Re1 {[%clk 0:01:02]}  g5 {[%clk 0:01:15]} 30. h3 {[%clk 0:00:28]}  Kf7 {[%clk 0:01:04]} 31. g4 {[%clk 0:00:18]}  Ke6 {[%clk 0:00:45]} 32. Rd3 {[%clk 0:00:11]}  Red8 {[%clk 0:00:41]} 33. gxf5+ {[%clk 0:00:03]}  Kxf5 {[%clk 0:00:42]} 34. h4 {[%clk 0:00:03]}  g4 {[%clk 0:00:41]} 35. Nh2 {[%clk 0:00:02]}  Nxe5 {[%clk 0:00:41]} 36. Rg3 {[%clk 0:00:02]}  h5 {[%clk 0:00:41]} 37. f3 {[%clk 0:00:02]}  d3 {[%clk 0:00:30]} 38. Bxe5 {[%clk 0:00:02]}  Rxe5 {[%clk 0:00:30]} 39. fxg4+ {[%clk 0:00:02]}  Ke6 {[%clk 0:00:24]} 40. Rd1 {[%clk 0:00:02]}  Re2+ {[%clk 0:00:22]} 41. Kh3 {[%clk 0:00:02]}  Bc7 {[%clk 0:00:23]} 42. Rg2 {[%clk 0:00:02]}  Bxh2 {[%clk 0:00:18]} 43. Kxh2 {[%clk 0:00:01]}  hxg4 {[%clk 0:00:17]} 44. Rxe2+ {[%clk 0:00:02]}  dxe2 {[%clk 0:00:17]} 45. Re1 {[%clk 0:00:03]}  Rd2 {[%clk 0:00:17]} 46. Kg3 {[%clk 0:00:03]}  Kf5 {[%clk 0:00:18]} 47. h5 {[%clk 0:00:04]}  Kg5 {[%clk 0:00:18]} 48. h6 {[%clk 0:00:04]}  Kxh6 {[%clk 0:00:18]} 49. Kxg4 {[%clk 0:00:04]}  Ra2 {[%clk 0:00:18]} 50. Kf4 {[%clk 0:00:04]}  Kg6 {[%clk 0:00:18]} 51. Ke4 {[%clk 0:00:05]}  Kf6 {[%clk 0:00:19]} 52. Kd4 {[%clk 0:00:04]}  Kf5 {[%clk 0:00:19]} 53. Kc5 {[%clk 0:00:04]}  Ke4 {[%clk 0:00:20]} 54. Kb6 {[%clk 0:00:04]}  Ke3 {[%clk 0:00:20]} 55. Kxb7 {[%clk 0:00:01]}  Rxa3 {[%clk 0:00:21]} 0-1

[Event "December 19 Early 2023"]
[Site "https://www.chess.com"]
[Date "2023.12.19"]
[Round "6"]
[White "Ivic, Velimir"]
[Black "Garcia Ramos, Daniel"]
[Result "1/2-1/2"]
[Board "18"]
[TimeControl "180+1"]
[WhiteFideId "950122"]
[BlackFideId "32010311"]
[WhiteElo "2542"]
[BlackElo "2363"]
[WhiteTeam "SRB"]
[BlackTeam "ESP"]
[WhiteClock "0:00:03"]
[BlackClock "0:00:04"]

1. e4 {[%clk 0:02:57]}  c6 {[%clk 0:03:00]} 2. d4 {[%clk 0:02:57]}  d5 {[%clk 0:03:00]} 3. e5 {[%clk 0:02:57]}  Bf5 {[%clk 0:03:00]} 4. h4 {[%clk 0:02:57]}  h5 {[%clk 0:03:00]} 5. Bd3 {[%clk 0:02:58]}  Bxd3 {[%clk 0:03:00]} 6. Qxd3 {[%clk 0:02:59]}  Qa5+ {[%clk 0:03:01]} 7. Nd2 {[%clk 0:02:59]}  e6 {[%clk 0:03:01]} 8. Ne2 {[%clk 0:02:59]}  Nh6 {[%clk 0:03:01]} 9. O-O {[%clk 0:02:57]}  Nf5 {[%clk 0:03:02]} 10. Nf3 {[%clk 0:02:56]}  Be7 {[%clk 0:03:02]} 11. Bg5 {[%clk 0:02:54]}  Qa6 {[%clk 0:02:59]} 12. Qd2 {[%clk 0:02:53]}  Nd7 {[%clk 0:02:55]} 13. Bxe7 {[%clk 0:02:48]}  Nxe7 {[%clk 0:02:54]} 14. Ng3 {[%clk 0:02:47]}  c5 {[%clk 0:02:52]} 15. c3 {[%clk 0:02:39]}  Rc8 {[%clk 0:02:52]} 16. Rfd1 {[%clk 0:02:38]}  b6 {[%clk 0:02:44]} 17. Qf4 {[%clk 0:02:36]}  g6 {[%clk 0:01:58]} 18. Ng5 {[%clk 0:02:33]}  Nf5 {[%clk 0:01:58]} 19. a4 {[%clk 0:02:21]}  Qc4 {[%clk 0:01:49]} 20. a5 {[%clk 0:02:18]}  b5 {[%clk 0:01:47]} 21. Rac1 {[%clk 0:01:58]}  Qa2 {[%clk 0:01:38]} 22. b4 {[%clk 0:01:37]}  cxb4 {[%clk 0:01:19]} 23. cxb4 {[%clk 0:01:38]}  Rc4 {[%clk 0:01:19]} 24. Nxf5 {[%clk 0:01:32]}  gxf5 {[%clk 0:01:17]} 25. Nf3 {[%clk 0:01:32]}  Rg8 {[%clk 0:01:15]} 26. Nd2 {[%clk 0:01:21]}  Rg4 {[%clk 0:01:07]} 27. Qh6 {[%clk 0:01:18]}  Nf8 {[%clk 0:00:42]} 28. Nxc4 {[%clk 0:01:13]}  bxc4 {[%clk 0:00:42]} 29. Qd2 {[%clk 0:01:06]}  Qa4 {[%clk 0:00:37]} 30. b5 {[%clk 0:01:05]}  Ng6 {[%clk 0:00:35]} 31. g3 {[%clk 0:00:41]}  f4 {[%clk 0:00:30]} 32. b6 {[%clk 0:00:39]}  axb6 {[%clk 0:00:25]} 33. axb6 {[%clk 0:00:39]}  fxg3 {[%clk 0:00:25]} 34. b7 {[%clk 0:00:34]}  Qb3 {[%clk 0:00:17]} 35. f3 {[%clk 0:00:26]}  Nxh4 {[%clk 0:00:09]} 36. Qc3 {[%clk 0:00:26]}  Nxf3+ {[%clk 0:00:05]} 37. Qxf3 {[%clk 0:00:26]}  Qxf3 {[%clk 0:00:04]} 38. b8=Q+ {[%clk 0:00:26]}  Ke7 {[%clk 0:00:04]} 39. Qb4+ {[%clk 0:00:22]}  Ke8 {[%clk 0:00:04]} 40. Qb8+ {[%clk 0:00:14]}  Ke7 {[%clk 0:00:04]} 41. Qb4+ {[%clk 0:00:07]}  Ke8 {[%clk 0:00:04]} 42. Qb8+ {[%clk 0:00:03]} 1/2-1/2

[Event "December 19 Early 2023"]
[Site "https://www.chess.com"]
[Date "2023.12.19"]
[Round "6"]
[White "Suyarov, Mukhammadzokhid"]
[Black "Vokhidov, Shamsiddin"]
[Result "0-1"]
[Board "20"]
[TimeControl "180+1"]
[WhiteFideId "14210495"]
[BlackFideId "14204223"]
[WhiteElo "2449"]
[BlackElo "2588"]
[WhiteTeam "UZB"]
[BlackTeam "UZB"]
[WhiteClock "0:00:27"]
[BlackClock "0:00:36"]

1. d4 {[%clk 0:03:00]}  Nf6 {[%clk 0:02:59]} 2. c4 {[%clk 0:03:01]}  e6 {[%clk 0:02:59]} 3. Nc3 {[%clk 0:03:01]}  Bb4 {[%clk 0:02:58]} 4. e3 {[%clk 0:03:02]}  O-O {[%clk 0:02:58]} 5. Bd2 {[%clk 0:03:02]}  b6 {[%clk 0:02:55]} 6. Nf3 {[%clk 0:03:03]}  d5 {[%clk 0:02:55]} 7. cxd5 {[%clk 0:03:03]}  exd5 {[%clk 0:02:56]} 8. Rc1 {[%clk 0:03:03]}  Re8 {[%clk 0:02:55]} 9. Bd3 {[%clk 0:03:01]}  Bb7 {[%clk 0:02:54]} 10. Ne5 {[%clk 0:03:01]}  Bf8 {[%clk 0:02:53]} 11. O-O {[%clk 0:03:01]}  c5 {[%clk 0:02:53]} 12. f4 {[%clk 0:02:56]}  Nc6 {[%clk 0:02:51]} 13. Bb5 {[%clk 0:02:46]}  Qd6 {[%clk 0:02:32]} 14. Be1 {[%clk 0:02:44]}  a6 {[%clk 0:02:29]} 15. Be2 {[%clk 0:02:38]}  cxd4 {[%clk 0:02:11]} 16. exd4 {[%clk 0:02:39]}  b5 {[%clk 0:02:10]} 17. Bh4 {[%clk 0:02:32]}  Ne4 {[%clk 0:02:04]} 18. Bf3 {[%clk 0:02:14]}  Ne7 {[%clk 0:01:49]} 19. g4 {[%clk 0:01:42]}  f6 {[%clk 0:01:47]} 20. Nxe4 {[%clk 0:01:42]}  dxe4 {[%clk 0:01:47]} 21. Bg2 {[%clk 0:01:20]}  fxe5 {[%clk 0:01:47]} 22. fxe5 {[%clk 0:01:20]}  Qd7 {[%clk 0:01:45]} 23. Rc5 {[%clk 0:01:16]}  Ng6 {[%clk 0:01:37]} 24. Qb3+ {[%clk 0:01:13]}  Kh8 {[%clk 0:01:37]} 25. Rf7 {[%clk 0:01:13]}  Qxd4+ {[%clk 0:01:32]} 26. Bf2 {[%clk 0:01:12]}  e3 {[%clk 0:01:12]} 27. Bxe3 {[%clk 0:01:09]}  Qxg4 {[%clk 0:01:08]} 28. Rxb7 {[%clk 0:01:00]}  Bxc5 {[%clk 0:01:07]} 29. Bxc5 {[%clk 0:00:58]}  Nf4 {[%clk 0:00:46]} 30. Qf3 {[%clk 0:00:43]}  Qxg2+ {[%clk 0:00:46]} 31. Qxg2 {[%clk 0:00:43]}  Nxg2 {[%clk 0:00:47]} 32. Kxg2 {[%clk 0:00:43]}  Rxe5 {[%clk 0:00:47]} 33. Bd4 {[%clk 0:00:41]}  Rg5+ {[%clk 0:00:47]} 34. Kf3 {[%clk 0:00:41]}  h6 {[%clk 0:00:48]} 35. h4 {[%clk 0:00:41]}  Rg6 {[%clk 0:00:48]} 36. Rf7 {[%clk 0:00:34]}  Kg8 {[%clk 0:00:47]} 37. Rd7 {[%clk 0:00:35]}  Rf8+ {[%clk 0:00:47]} 38. Ke3 {[%clk 0:00:35]}  Rf7 {[%clk 0:00:47]} 39. Rd8+ {[%clk 0:00:35]}  Kh7 {[%clk 0:00:47]} 40. Rd5 {[%clk 0:00:34]}  Rg3+ {[%clk 0:00:45]} 41. Ke2 {[%clk 0:00:34]}  Rg4 {[%clk 0:00:44]} 42. h5 {[%clk 0:00:33]}  Rg5 {[%clk 0:00:35]} 43. Rd6 {[%clk 0:00:34]}  a5 {[%clk 0:00:36]} 44. Ra6 {[%clk 0:00:27]}  a4 {[%clk 0:00:36]} 0-1

[Event "December 19 Early 2023"]
[Site "https://www.chess.com"]
[Date "2023.12.19"]
[Round "6"]
[White "Postny, Evgeny"]
[Black "Grandelius, Nils"]
[Result "0-1"]
[Board "21"]
[TimeControl "180+1"]
[WhiteFideId "2804344"]
[BlackFideId "1710400"]
[WhiteElo "2505"]
[BlackElo "2573"]
[WhiteTeam "ISR"]
[BlackTeam "SWE"]
[WhiteClock "0:00:01"]
[BlackClock "0:00:18"]

1. d4 {[%clk 0:03:00]}  Nf6 {[%clk 0:02:59]} 2. c4 {[%clk 0:03:01]}  g6 {[%clk 0:02:59]} 3. Nf3 {[%clk 0:03:00]}  Bg7 {[%clk 0:03:00]} 4. Nc3 {[%clk 0:03:00]}  O-O {[%clk 0:03:00]} 5. e4 {[%clk 0:03:01]}  d6 {[%clk 0:03:00]} 6. h3 {[%clk 0:02:59]}  c5 {[%clk 0:02:56]} 7. d5 {[%clk 0:02:56]}  e6 {[%clk 0:02:54]} 8. Bd3 {[%clk 0:02:54]}  Na6 {[%clk 0:02:54]} 9. O-O {[%clk 0:02:54]}  Re8 {[%clk 0:02:53]} 10. a3 {[%clk 0:02:48]}  Nc7 {[%clk 0:02:45]} 11. Rb1 {[%clk 0:02:46]}  b6 {[%clk 0:02:33]} 12. Bg5 {[%clk 0:02:41]}  h6 {[%clk 0:02:33]} 13. Be3 {[%clk 0:02:39]}  e5 {[%clk 0:02:27]} 14. b4 {[%clk 0:02:27]}  Nh5 {[%clk 0:02:25]} 15. Re1 {[%clk 0:02:26]}  Nf4 {[%clk 0:02:23]} 16. Bf1 {[%clk 0:02:26]}  f5 {[%clk 0:02:13]} 17. Rb3 {[%clk 0:02:15]}  Bd7 {[%clk 0:02:02]} 18. Qb1 {[%clk 0:02:08]}  Nh5 {[%clk 0:01:55]} 19. exf5 {[%clk 0:02:00]}  gxf5 {[%clk 0:01:52]} 20. Bd2 {[%clk 0:01:42]}  e4 {[%clk 0:01:47]} 21. Nh2 {[%clk 0:01:40]}  Be5 {[%clk 0:01:46]} 22. Bxh6 {[%clk 0:01:18]}  Qf6 {[%clk 0:01:36]} 23. Bd2 {[%clk 0:01:13]}  Re7 {[%clk 0:01:31]} 24. Qc1 {[%clk 0:00:55]}  Rg7 {[%clk 0:01:28]} 25. Kh1 {[%clk 0:00:52]}  Qh4 {[%clk 0:01:21]} 26. Nd1 {[%clk 0:00:45]}  Ba4 {[%clk 0:01:09]} 27. g3 {[%clk 0:00:34]}  Bxg3 {[%clk 0:01:04]} 28. fxg3 {[%clk 0:00:33]}  Nxg3+ {[%clk 0:01:05]} 29. Rxg3 {[%clk 0:00:32]}  Qxg3 {[%clk 0:01:06]} 30. Be3 {[%clk 0:00:31]}  Qxe1 {[%clk 0:01:00]} 31. Nc3 {[%clk 0:00:24]}  Qxc1 {[%clk 0:00:54]} 32. Bxc1 {[%clk 0:00:25]}  Bd7 {[%clk 0:00:42]} 33. Bf4 {[%clk 0:00:25]}  Ne8 {[%clk 0:00:40]} 34. Be2 {[%clk 0:00:22]}  cxb4 {[%clk 0:00:40]} 35. axb4 {[%clk 0:00:22]}  a5 {[%clk 0:00:41]} 36. b5 {[%clk 0:00:22]}  a4 {[%clk 0:00:41]} 37. Nf1 {[%clk 0:00:21]}  a3 {[%clk 0:00:42]} 38. Na2 {[%clk 0:00:22]}  Rg6 {[%clk 0:00:38]} 39. Ne3 {[%clk 0:00:21]}  Ng7 {[%clk 0:00:34]} 40. Nc2 {[%clk 0:00:18]}  Be8 {[%clk 0:00:29]} 41. Nd4 {[%clk 0:00:11]}  Rf6 {[%clk 0:00:29]} 42. Nc6 {[%clk 0:00:09]}  Bh5 {[%clk 0:00:27]} 43. Bf1 {[%clk 0:00:09]}  Bd1 {[%clk 0:00:25]} 44. Be3 {[%clk 0:00:08]}  Bb3 {[%clk 0:00:25]} 45. Ncb4 {[%clk 0:00:09]}  Rc8 {[%clk 0:00:20]} 46. Bxb6 {[%clk 0:00:06]}  Bxc4 {[%clk 0:00:20]} 47. Bxc4 {[%clk 0:00:03]}  Rxc4 {[%clk 0:00:21]} 48. Bd8 {[%clk 0:00:03]}  Rf7 {[%clk 0:00:21]} 49. b6 {[%clk 0:00:03]}  Rb7 {[%clk 0:00:22]} 50. Kg1 {[%clk 0:00:02]}  f4 {[%clk 0:00:19]} 51. Kf1 {[%clk 0:00:01]}  Nf5 {[%clk 0:00:20]} 52. Ke2 {[%clk 0:00:01]}  Kf7 {[%clk 0:00:20]} 53. Kd2 {[%clk 0:00:01]}  f3 {[%clk 0:00:18]} 54. Bc7 {[%clk 0:00:02]}  e3+ {[%clk 0:00:18]} 55. Kd3 {[%clk 0:00:03]}  Rxb4 {[%clk 0:00:18]} 56. Nxb4 {[%clk 0:00:02]}  f2 {[%clk 0:00:18]} 57. Ke2 {[%clk 0:00:01]}  Ng3+ {[%clk 0:00:18]} 0-1